[Event "Queens Festival Final Team 2022"]
[Site "Tornelo"]
[Date "2022.06.26"]
[Round "9.6"]
[White "Ismayil, Malak"]
[Black "Maksimovic, Suzana"]
[Result "1-0"]
[ECO "B31"]
[WhiteElo "2001"]
[BlackElo "2145"]
[Annotator "NA RC"]
[PlyCount "57"]
[EventDate "2022.06.24"]
[EventType "team-tourn"]
[EventCountry "NET"]
[SourceTitle "playchess.com"]
[Source "ChessBase"]
[SourceQuality "1"]
[WhiteTeam "Azerbaijan"]
[BlackTeam "Serbia"]
[WhiteTeamCountry "AZE"]
[BlackTeamCountry "SRB"]
[TimeControl "180+2"]

1. e4 {[%emt 0:00:02]} c5 {[%emt 0:00:05]} 2. Nf3 {[%emt 0:00:02]} Nc6 {[%emt 0:00:02]} 3. Bb5 {[%emt 0:00:02]} g6 {[%emt 0:00:01]} 4. O-O {[%emt 0:00:02]} Bg7 {[%emt 0:00:02]} 5. c3 {[%emt 0:00:02]} e5 {[%emt 0:00:05]} 6. Bxc6 {[%emt 0:00:09]} dxc6 {[%emt 0:00:03]} 7. Qe2 {[%emt 0:00:02]} Qe7 {[%emt 0:00:07]} 8. d3 {[%emt 0:00:12]} Nf6 {[%emt 0:00:05]} 9. Nbd2 {[%emt 0:00:08]} O-O {[%emt 0:00:04]} 10. Nb3 {[%emt 0:00:02]} h6 {[%emt 0:00:12]} 11. h3 {[%emt 0:00:03]} b6 {[%emt 0:00:12]} 12. Nbd2 {[%emt 0:00:06]} a5 {[%emt 0:00:10]} 13. Nc4 {[%emt 0:00:02]} Nd7 {[%emt 0:00:01]} 14. Rd1 {[%emt 0:00:14]} a4 {[%emt 0:00:23]} 15. Ne3 {[%emt 0:00:05]} f5 {[%emt 0:00:09]} 16. Nf1 {[%emt 0:00:07]} Ba6 {[%emt 0:00:19]} 17. Qe3 {[%emt 0:00:03]} Rad8 {[%emt 0:00:11]} 18. b3 {[%emt 0:00:05]} fxe4 {[%emt 0:00:19]} 19. dxe4 {[%emt 0:00:02]} Nf6 {[%emt 0:00:04]} 20. Ba3 {[%emt 0:00:12]} Nh5 {[%emt 0:00:08]} 21. b4 {[%emt 0:00:09]} cxb4 {[%emt 0:00:07]} 22. cxb4 {[%emt 0:00:09]} Bb5 {[%emt 0:00:07]} 23. Qxb6 {[%emt 0:00:12]} Nf4 {[%emt 0:00:16]} 24. Qe3 {[%emt 0:00:06]} Kh7 {[%emt 0:00:12]} 25. Ng3 {[%emt 0:00:17]} Qf6 {[%emt 0:00:10]} 26. Kh2 {[%emt 0:00:19]} Rxd1 {[%emt 0:00:09]} 27. Rxd1 {[%emt 0:00:03]} g5 {[%emt 0:00:09]} 28. Bb2 {[%emt 0:00:03]} Qg6 {[%emt 0:00:04]} 29. Bxe5 {[%emt 0:00:30]} 1-0

[Event "Queens Festival Final Team 2022"]
[Site "Tornelo"]
[Date "2022.06.26"]
[Round "9.6"]
[White "Vujcic, Milena"]
[Black "Mammadova, Aysel"]
[Result "1-0"]
[ECO "C65"]
[WhiteElo "1987"]
[BlackElo "1893"]
[Annotator "NA RC"]
[PlyCount "103"]
[EventDate "2022.06.24"]
[EventType "team-tourn"]
[EventCountry "NET"]
[SourceTitle "playchess.com"]
[Source "ChessBase"]
[SourceQuality "1"]
[WhiteTeam "Serbia"]
[BlackTeam "Azerbaijan"]
[WhiteTeamCountry "SRB"]
[BlackTeamCountry "AZE"]
[TimeControl "180+2"]

1. e4 {[%emt 0:00:02]} e5 {[%emt 0:00:05]} 2. Nf3 {[%emt 0:00:02]} Nc6 {[%emt 0:00:02]} 3. Bb5 {[%emt 0:00:01]} Nf6 {[%emt 0:00:03]} 4. O-O {[%emt 0:00:02]} Bc5 {[%emt 0:00:02]} 5. c3 {[%emt 0:00:01]} O-O {[%emt 0:00:03]} 6. d4 {[%emt 0:00:02]} exd4 {[%emt 0:00:04]} 7. cxd4 {[%emt 0:00:01]} Be7 {[%emt 0:00:02]} 8. e5 {[%emt 0:00:02]} Nd5 {[%emt 0:00:04]} 9. Nc3 {[%emt 0:00:04]} Nxc3 {[%emt 0:00:03]} 10. bxc3 {[%emt 0:00:01]} d5 {[%emt 0:00:08]} 11. c4 {[%emt 0:00:13]} Bg4 {[%emt 0:00:18]} 12. Bxc6 {[%emt 0:00:09]} bxc6 {[%emt 0:00:05]} 13. Be3 {[%emt 0:00:05]} dxc4 {[%emt 0:00:04]} 14. h3 {[%emt 0:00:02]} Bxf3 {[%emt 0:00:05]} 15. Qxf3 {[%emt 0:00:02]} Qd5 {[%emt 0:00:04]} 16. Qe2 {[%emt 0:00:02]} c5 {[%emt 0:00:06]} 17. Rfd1 {[%emt 0:00:05]} Rfd8 {[%emt 0:00:12]} 18. f4 {[%emt 0:00:06]} cxd4 {[%emt 0:00:02]} 19. Rxd4 {[%emt 0:00:02]} Qe6 {[%emt 0:00:26]} 20. Qxc4 {[%emt 0:00:04]} Rxd4 {[%emt 0:00:19]} 21. Qxe6 {[%emt 0:00:02]} fxe6 {[%emt 0:00:03]} 22. Bxd4 {[%emt 0:00:02]} c5 {[%emt 0:00:03]} 23. Be3 {[%emt 0:00:02]} a6 {[%emt 0:00:03]} 24. Rc1 {[%emt 0:00:02]} Rc8 {[%emt 0:00:03]} 25. Kf2 {[%emt 0:00:02]} Kf7 {[%emt 0:00:01]} 26. Ke2 {[%emt 0:00:02]} Ke8 {[%emt 0:00:02]} 27. Kd3 {[%emt 0:00:01]} Kd7 {[%emt 0:00:02]} 28. Kc4 {[%emt 0:00:02]} Kc6 {[%emt 0:00:02]} 29. Rb1 {[%emt 0:00:04]} Rd8 {[%emt 0:00:02]} 30. a4 {[%emt 0:00:04]} g6 {[%emt 0:00:02]} 31. g4 {[%emt 0:00:04]} h5 {[%emt 0:00:04]} 32. a5 {[%emt 0:00:03]} hxg4 {[%emt 0:00:03]} 33. hxg4 {[%emt 0:00:01]} Rh8 {[%emt 0:00:02]} 34. Rb6+ {[%emt 0:00:02]} Kc7 {[%emt 0:00:03]} 35. Rxe6 {[%emt 0:00:03]} Bd8 {[%emt 0:00:05]} 36. Rxg6 {[%emt 0:00:05]} Rh3 {[%emt 0:00:02]} 37. Bxc5 {[%emt 0:00:03]} Rh1 {[%emt 0:00:03]} 38. Bb6+ {[%emt 0:00:03]} Kd7 {[%emt 0:00:02]} 39. Rd6+ {[%emt 0:00:02]} Kc8 {[%emt 0:00:07]} 40. Rxd8+ {[%emt 0:00:02]} Kb7 {[%emt 0:00:02]} 41. Rd7+ {[%emt 0:00:02]} Kc8 {[%emt 0:00:02]} 42. Rc7+ {[%emt 0:00:03]} Kb8 {[%emt 0:00:02]} 43. Kd5 {[%emt 0:00:04]} Rd1+ {[%emt 0:00:03]} 44. Ke6 {[%emt 0:00:01]} Rf1 {[%emt 0:00:14]} 45. f5 {[%emt 0:00:02]} Ka8 {[%emt 0:00:03]} 46. f6 {[%emt 0:00:02]} Rd1 {[%emt 0:00:03]} 47. g5 {[%emt 0:00:02]} Rg1 {[%emt 0:00:02]} 48. f7 {[%emt 0:00:02]} Rf1 {[%emt 0:00:03]} 49. g6 {[%emt 0:00:02]} Kb8 {[%emt 0:00:01]} 50. g7 {[%emt 0:00:03]} Rxf7 {[%emt 0:00:03]} 51. Kxf7 {[%emt 0:00:01]} Ka8 {[%emt 0:00:03]} 52. g8=R# {[%emt 0:00:03]} 1-0

[Event "Queens Festival Final Team 2022"]
[Site "Tornelo"]
[Date "2022.06.26"]
[Round "9.6"]
[White "Khalilova, Khadija"]
[Black "Vukosavljevic, Tatjana"]
[Result "1-0"]
[ECO "C47"]
[WhiteElo "1777"]
[BlackElo "1758"]
[Annotator "NA RC"]
[PlyCount "39"]
[EventDate "2022.06.24"]
[EventType "team-tourn"]
[EventCountry "NET"]
[SourceTitle "playchess.com"]
[Source "ChessBase"]
[SourceQuality "1"]
[WhiteTeam "Azerbaijan"]
[BlackTeam "Serbia"]
[WhiteTeamCountry "AZE"]
[BlackTeamCountry "SRB"]
[TimeControl "180+2"]

1. e4 {[%emt 0:00:02]} e5 {[%emt 0:00:04]} 2. Nf3 {[%emt 0:00:02]} Nf6 {[%emt 0:00:02]} 3. Nc3 {[%emt 0:00:03]} Nc6 {[%emt 0:00:02]} 4. d4 {[%emt 0:00:07]} exd4 {[%emt 0:00:06]} 5. Nxd4 {[%emt 0:00:02]} Bb4 {[%emt 0:00:05]} 6. Nxc6 {[%emt 0:00:08]} bxc6 {[%emt 0:00:02]} 7. Bd3 {[%emt 0:00:02]} O-O {[%emt 0:00:08]} 8. O-O {[%emt 0:00:02]} Re8 {[%emt 0:00:11]} 9. Qf3 {[%emt 0:00:09]} h6 {[%emt 0:00:05]} 10. h3 {[%emt 0:00:05]} d5 {[%emt 0:00:12]} 11. exd5 {[%emt 0:00:05]} cxd5 {[%emt 0:00:03]} 12. Bf4 {[%emt 0:00:03]} c6 {[%emt 0:00:13]} 13. Rad1 {[%emt 0:00:06]} Qa5 {[%emt 0:00:11]} 14. Bxh6 {[%emt 0:00:16]} Bxc3 {[%emt 0:00:16]} 15. bxc3 {[%emt 0:00:04]} Ne4 {[%emt 0:00:45]} 16. Bxe4 {[%emt 0:00:04]} Rxe4 {[%emt 0:00:05]} 17. Qg3 {[%emt 0:00:06]} g6 {[%emt 0:00:08]} 18. Qd6 {[%emt 0:00:09]} Re6 {[%emt 0:00:07]} 19. Qf8+ {[%emt 0:00:03]} Kh7 {[%emt 0:00:04]} 20. Qg7# {[%emt 0:00:02]} 1-0

[Event "Queens Festival Final Team 2022"]
[Site "Tornelo"]
[Date "2022.06.26"]
[Round "9.6"]
[White "Vujovic, Vera"]
[Black "Bakhshizada, Asnad"]
[Result "0-1"]
[ECO "C10"]
[WhiteElo "1353"]
[BlackElo "1052"]
[Annotator "NA RC"]
[PlyCount "110"]
[EventDate "2022.06.24"]
[EventType "team-tourn"]
[EventCountry "NET"]
[SourceTitle "playchess.com"]
[Source "ChessBase"]
[SourceQuality "1"]
[WhiteTeam "Serbia"]
[BlackTeam "Azerbaijan"]
[WhiteTeamCountry "SRB"]
[BlackTeamCountry "AZE"]
[TimeControl "180+2"]

1. e4 {[%emt 0:00:02]} e6 {[%emt 0:00:05]} 2. d4 {[%emt 0:00:02]} d5 {[%emt 0:00:03]} 3. Nc3 {[%emt 0:00:01]} f6 {[%emt 0:00:02]} 4. Nf3 {[%emt 0:00:12]} Ne7 {[%emt 0:00:04]} 5. Bf4 {[%emt 0:00:05]} Nbc6 {[%emt 0:00:04]} 6. exd5 {[%emt 0:00:05]} Nxd5 {[%emt 0:00:04]} 7. Nxd5 {[%emt 0:00:02]} exd5 {[%emt 0:00:02]} 8. Bg3 {[%emt 0:00:17]} Be7 {[%emt 0:00:07]} 9. Bb5 {[%emt 0:00:11]} Bd7 {[%emt 0:00:06]} 10. O-O {[%emt 0:00:02]} O-O {[%emt 0:00:03]} 11. Ba4 {[%emt 0:00:08]} a6 {[%emt 0:00:13]} 12. Bb3 {[%emt 0:00:01]} Be6 {[%emt 0:00:02]} 13. Re1 {[%emt 0:00:02]} Bf7 {[%emt 0:00:02]} 14. Nh4 {[%emt 0:00:06]} Qd7 {[%emt 0:00:08]} 15. Qf3 {[%emt 0:00:08]} Nxd4 {[%emt 0:00:08]} 16. Qc3 {[%emt 0:00:21]} Nc6 {[%emt 0:00:13]} 17. a3 {[%emt 0:00:18]} Rae8 {[%emt 0:00:20]} 18. Rad1 {[%emt 0:00:05]} Kh8 {[%emt 0:00:16]} 19. Qd3 {[%emt 0:00:12]} Rd8 {[%emt 0:00:11]} 20. Nf5 {[%emt 0:00:26]} Bc5 {[%emt 0:00:08]} 21. Ne3 {[%emt 0:00:06]} d4 {[%emt 0:00:08]} 22. Nc4 {[%emt 0:00:08]} Bg6 {[%emt 0:00:13]} 23. Qd2 {[%emt 0:00:06]} b5 {[%emt 0:00:09]} 24. Ne5 {[%emt 0:00:18]} fxe5 {[%emt 0:00:07]} 25. Bxe5 {[%emt 0:00:01]} Nxe5 {[%emt 0:00:06]} 26. Rxe5 {[%emt 0:00:02]} Bb6 {[%emt 0:00:04]} 27. Rd5 {[%emt 0:00:02]} Qe7 {[%emt 0:00:12]} 28. Rg5 {[%emt 0:00:05]} Qf6 {[%emt 0:00:04]} 29. Rf1 {[%emt 0:00:05]} Ba5 {[%emt 0:00:08]} 30. Qc1 {[%emt 0:00:03]} Bb6 {[%emt 0:00:06]} 31. Rg3 {[%emt 0:00:02]} c5 {[%emt 0:00:06]} 32. Rf3 {[%emt 0:00:01]} Qe7 {[%emt 0:00:03]} 33. Re1 {[%emt 0:00:02]} Qc7 {[%emt 0:00:04]} 34. Rh3 {[%emt 0:00:03]} c4 {[%emt 0:00:04]} 35. Ba2 {[%emt 0:00:02]} d3 {[%emt 0:00:02]} 36. cxd3 {[%emt 0:00:01]} Bxf2+ {[%emt 0:00:02]} 37. Kh1 {[%emt 0:00:02]} Bxe1 {[%emt 0:00:02]} 38. Qxe1 {[%emt 0:00:02]} Qf4 {[%emt 0:00:03]} 39. Rf3 {[%emt 0:00:05]} Qd6 {[%emt 0:00:02]} 40. Re3 {[%emt 0:00:04]} Rde8 {[%emt 0:00:04]} 41. h3 {[%emt 0:00:04]} Rxe3 {[%emt 0:00:03]} 42. Qxe3 {[%emt 0:00:02]} Qf6 {[%emt 0:00:01]} 43. Kh2 {[%emt 0:00:06]} Qd6+ {[%emt 0:00:02]} 44. g3 {[%emt 0:00:02]} Re8 {[%emt 0:00:03]} 45. Qf2 {[%emt 0:00:03]} h6 {[%emt 0:00:02]} 46. dxc4 {[%emt 0:00:01]} bxc4 {[%emt 0:00:02]} 47. Bxc4 {[%emt 0:00:02]} Qe7 {[%emt 0:00:02]} 48. Kg2 {[%emt 0:00:02]} Qe3 {[%emt 0:00:02]} 49. Qf1 {[%emt 0:00:04]} Qd2+ {[%emt 0:00:02]} 50. Kg1 {[%emt 0:00:03]} Qd4+ {[%emt 0:00:01]} 51. Kh2 {[%emt 0:00:03]} Qd2+ {[%emt 0:00:04]} 52. Kg1 {[%emt 0:00:02]} Qe3+ {[%emt 0:00:01]} 53. Kh2 {[%emt 0:00:02]} Rc8 {[%emt 0:00:02]} 54. Bb3 {[%emt 0:00:03]} Qxb3 {[%emt 0:00:03]} 55. Qg2 {[%emt 0:00:02]} Rc2 {[%emt 0:00:03]} 0-1

[Event "Queens Festival Final Team 2022"]
[Site "Tornelo"]
[Date "2022.06.26"]
[Round "10.1"]
[White "Vujcic, Milena"]
[Black "Grigoryan, Meri"]
[Result "1-0"]
[ECO "C63"]
[WhiteElo "1987"]
[BlackElo "1993"]
[Annotator "NA RC"]
[PlyCount "63"]
[EventDate "2022.06.24"]
[EventType "team-tourn"]
[EventCountry "NET"]
[SourceTitle "playchess.com"]
[Source "ChessBase"]
[SourceQuality "1"]
[WhiteTeam "Serbia"]
[BlackTeam "England"]
[WhiteTeamCountry "SRB"]
[BlackTeamCountry "ENG"]
[TimeControl "180+2"]

1. e4 {[%emt 0:00:02]} e5 {[%emt 0:00:05]} 2. Nf3 {[%emt 0:00:02]} Nc6 {[%emt 0:00:05]} 3. Bb5 {[%emt 0:00:03]} f5 {[%emt 0:00:02]} 4. Nc3 {[%emt 0:00:02]} fxe4 {[%emt 0:00:03]} 5. Nxe4 {[%emt 0:00:32]} Nf6 {[%emt 0:00:05]} 6. Qe2 {[%emt 0:00:14]} Qe7 {[%emt 0:00:17]} 7. O-O {[%emt 0:00:08]} d5 {[%emt 0:00:14]} 8. Nxf6+ {[%emt 0:00:12]} gxf6 {[%emt 0:00:02]} 9. Re1 {[%emt 0:00:19]} Bd7 {[%emt 0:00:24]} 10. d3 {[%emt 0:00:49]} O-O-O {[%emt 0:00:07]} 11. Bd2 {[%emt 0:00:12]} h5 {[%emt 0:00:10]} 12. c4 {[%emt 0:00:18]} d4 {[%emt 0:00:09]} 13. Bxc6 {[%emt 0:00:06]} Bxc6 {[%emt 0:00:03]} 14. b4 {[%emt 0:00:01]} b6 {[%emt 0:00:18]} 15. a4 {[%emt 0:00:04]} Bh6 {[%emt 0:00:26]} 16. a5 {[%emt 0:00:05]} Bxd2 {[%emt 0:00:02]} 17. Nxd2 {[%emt 0:00:01]} Rhg8 {[%emt 0:00:03]} 18. f3 {[%emt 0:00:02]} h4 {[%emt 0:00:02]} 19. axb6 {[%emt 0:00:03]} cxb6 {[%emt 0:00:02]} 20. Ne4 {[%emt 0:00:04]} h3 {[%emt 0:00:10]} 21. g3 {[%emt 0:00:08]} f5 {[%emt 0:00:05]} 22. Nd2 {[%emt 0:00:02]} Rde8 {[%emt 0:00:07]} 23. c5 {[%emt 0:00:06]} b5 {[%emt 0:00:06]} 24. Ra2 {[%emt 0:00:05]} Bd5 {[%emt 0:00:06]} 25. Ra3 {[%emt 0:00:02]} Bb7 {[%emt 0:00:07]} 26. Rea1 {[%emt 0:00:02]} a6 {[%emt 0:00:01]} 27. Nb3 {[%emt 0:00:03]} Rd8 {[%emt 0:00:07]} 28. c6 {[%emt 0:00:01]} Bxc6 {[%emt 0:00:04]} 29. Rxa6 {[%emt 0:00:03]} Bb7 {[%emt 0:00:01]} 30. Ra7 {[%emt 0:00:01]} e4 {[%emt 0:00:04]} 31. Nc5 {[%emt 0:00:02]} Bc6 {[%emt 0:00:18]} 32. Rxe7 {[%emt 0:00:02]} 1-0

[Event "Queens Festival Final Team 2022"]
[Site "Tornelo"]
[Date "2022.06.26"]
[Round "10.1"]
[White "Subramanian, Anusha"]
[Black "Maksimovic, Suzana"]
[Result "0-1"]
[ECO "B33"]
[WhiteElo "1671"]
[BlackElo "2145"]
[Annotator "NA RC"]
[PlyCount "68"]
[EventDate "2022.06.24"]
[EventType "team-tourn"]
[EventCountry "NET"]
[SourceTitle "playchess.com"]
[Source "ChessBase"]
[SourceQuality "1"]
[WhiteTeam "England"]
[BlackTeam "Serbia"]
[WhiteTeamCountry "ENG"]
[BlackTeamCountry "SRB"]
[TimeControl "180+2"]

1. e4 {[%emt 0:00:02]} c5 {[%emt 0:00:06]} 2. Nf3 {[%emt 0:00:03]} Nc6 {[%emt 0:00:02]} 3. d4 {[%emt 0:00:01]} cxd4 {[%emt 0:00:01]} 4. Nxd4 {[%emt 0:00:00]} Nf6 {[%emt 0:00:02]} 5. Nc3 {[%emt 0:00:02]} e5 {[%emt 0:00:01]} 6. Ndb5 {[%emt 0:00:02]} d6 {[%emt 0:00:02]} 7. a4 {[%emt 0:00:17]} a6 {[%emt 0:00:04]} 8. Na3 {[%emt 0:00:01]} Bg4 {[%emt 0:00:01]} 9. f3 {[%emt 0:00:03]} Be6 {[%emt 0:00:03]} 10. Be3 {[%emt 0:00:02]} Rc8 {[%emt 0:00:04]} 11. Qd2 {[%emt 0:00:03]} Nb4 {[%emt 0:00:33]} 12. Be2 {[%emt 0:00:17]} Be7 {[%emt 0:00:06]} 13. g4 {[%emt 0:00:11]} d5 {[%emt 0:00:24]} 14. exd5 {[%emt 0:00:16]} Nfxd5 {[%emt 0:00:06]} 15. Nxd5 {[%emt 0:00:08]} Nxd5 {[%emt 0:00:05]} 16. h4 {[%emt 0:00:34]} Bxh4+ {[%emt 0:00:22]} 17. Bf2 {[%emt 0:00:20]} Bxf2+ {[%emt 0:00:06]} 18. Kxf2 {[%emt 0:00:00]} Qb6+ {[%emt 0:00:16]} 19. Kg3 {[%emt 0:00:06]} Nf4 {[%emt 0:00:12]} 20. c3 {[%emt 0:00:17]} O-O {[%emt 0:00:10]} 21. Bd3 {[%emt 0:00:12]} h6 {[%emt 0:00:04]} 22. g5 {[%emt 0:00:13]} Rfd8 {[%emt 0:00:06]} 23. gxh6 {[%emt 0:00:23]} Rxd3 {[%emt 0:00:10]} 24. Qh2 {[%emt 0:00:05]} Bh3 {[%emt 0:00:17]} 25. hxg7 {[%emt 0:00:04]} Qg6+ {[%emt 0:00:08]} 26. Kf2 {[%emt 0:00:02]} Rd2+ {[%emt 0:00:02]} 27. Ke3 {[%emt 0:00:02]} Rxh2 {[%emt 0:00:01]} 28. Rxh2 {[%emt 0:00:00]} Qd3+ {[%emt 0:00:05]} 29. Kf2 {[%emt 0:00:02]} Kxg7 {[%emt 0:00:02]} 30. Rg1+ {[%emt 0:00:03]} Kf6 {[%emt 0:00:02]} 31. Nb1 {[%emt 0:00:04]} Qc2+ {[%emt 0:00:04]} 32. Kg3 {[%emt 0:00:01]} Rg8+ {[%emt 0:00:01]} 33. Kh4 {[%emt 0:00:02]} Qxh2 {[%emt 0:00:03]} 34. Rxg8 {[%emt 0:00:02]} Bf5# {[%emt 0:00:03]} 0-1

[Event "Queens Festival Final Team 2022"]
[Site "Tornelo"]
[Date "2022.06.26"]
[Round "10.1"]
[White "Posadas, Rayelynn"]
[Black "Vukosavljevic, Tatjana"]
[Result "1-0"]
[ECO "D77"]
[WhiteElo "1648"]
[BlackElo "1758"]
[Annotator "NA RC"]
[PlyCount "47"]
[EventDate "2022.06.24"]
[EventType "team-tourn"]
[EventCountry "NET"]
[SourceTitle "playchess.com"]
[Source "ChessBase"]
[SourceQuality "1"]
[WhiteTeam "England"]
[BlackTeam "Serbia"]
[WhiteTeamCountry "ENG"]
[BlackTeamCountry "SRB"]
[TimeControl "180+2"]

1. Nf3 {[%emt 0:00:02]} Nf6 {[%emt 0:00:04]} 2. g3 {[%emt 0:00:02]} g6 {[%emt 0:00:02]} 3. Bg2 {[%emt 0:00:00]} Bg7 {[%emt 0:00:01]} 4. O-O {[%emt 0:00:01]} O-O {[%emt 0:00:02]} 5. d4 {[%emt 0:00:00]} d5 {[%emt 0:00:01]} 6. c4 {[%emt 0:00:01]} c5 {[%emt 0:00:04]} 7. Nc3 {[%emt 0:00:02]} e6 {[%emt 0:00:13]} 8. cxd5 {[%emt 0:00:07]} Nxd5 {[%emt 0:00:12]} 9. Nxd5 {[%emt 0:00:06]} Qxd5 {[%emt 0:00:09]} 10. dxc5 {[%emt 0:00:02]} Qxc5 {[%emt 0:00:03]} 11. Be3 {[%emt 0:00:07]} Qe7 {[%emt 0:00:20]} 12. Qb3 {[%emt 0:00:13]} Nc6 {[%emt 0:00:05]} 13. Rac1 {[%emt 0:00:02]} Bd7 {[%emt 0:00:13]} 14. Bc5 {[%emt 0:00:02]} Qf6 {[%emt 0:00:31]} 15. Bxf8 {[%emt 0:00:03]} Rxf8 {[%emt 0:00:02]} 16. Rfd1 {[%emt 0:00:07]} Ne5 {[%emt 0:00:17]} 17. Nxe5 {[%emt 0:00:05]} Qxe5 {[%emt 0:00:05]} 18. Rxd7 {[%emt 0:00:02]} Qxe2 {[%emt 0:00:04]} 19. Qxb7 {[%emt 0:00:21]} Bd4 {[%emt 0:00:03]} 20. Rxd4 {[%emt 0:00:04]} Qe5 {[%emt 0:00:08]} 21. Rd7 {[%emt 0:00:08]} Qg5 {[%emt 0:00:08]} 22. Rcc7 {[%emt 0:00:05]} Qe5 {[%emt 0:00:12]} 23. Rxf7 {[%emt 0:00:04]} Qe1+ {[%emt 0:00:02]} 24. Bf1 {[%emt 0:00:03]} 1-0

[Event "Queens Festival Final Team 2022"]
[Site "Tornelo"]
[Date "2022.06.26"]
[Round "10.1"]
[White "Vujovic, Vera"]
[Black "Catabay, Mae Katelyn Rose"]
[Result "0-1"]
[ECO "C10"]
[WhiteElo "1353"]
[BlackElo "1321"]
[Annotator "NA RC"]
[PlyCount "142"]
[EventDate "2022.06.24"]
[EventType "team-tourn"]
[EventCountry "NET"]
[SourceTitle "playchess.com"]
[Source "ChessBase"]
[SourceQuality "1"]
[WhiteTeam "Serbia"]
[BlackTeam "England"]
[WhiteTeamCountry "SRB"]
[BlackTeamCountry "ENG"]
[TimeControl "180+2"]

1. e4 {[%emt 0:00:02]} e6 {[%emt 0:00:05]} 2. d4 {[%emt 0:00:02]} d5 {[%emt 0:00:01]} 3. Nc3 {[%emt 0:00:02]} dxe4 {[%emt 0:00:06]} 4. Nxe4 {[%emt 0:00:01]} Nf6 {[%emt 0:00:03]} 5. Nxf6+ {[%emt 0:00:06]} Qxf6 {[%emt 0:00:02]} 6. Nf3 {[%emt 0:00:01]} Qd8 {[%emt 0:00:04]} 7. c3 {[%emt 0:00:02]} Nc6 {[%emt 0:00:02]} 8. Bb5 {[%emt 0:00:03]} Bd7 {[%emt 0:00:02]} 9. O-O {[%emt 0:00:02]} Be7 {[%emt 0:00:02]} 10. Bf4 {[%emt 0:00:07]} O-O {[%emt 0:00:02]} 11. Qc2 {[%emt 0:00:13]} a6 {[%emt 0:00:04]} 12. Ba4 {[%emt 0:00:04]} b5 {[%emt 0:00:05]} 13. Bb3 {[%emt 0:00:01]} Na5 {[%emt 0:00:02]} 14. Ne5 {[%emt 0:00:09]} Nxb3 {[%emt 0:00:05]} 15. Qxb3 {[%emt 0:00:02]} Kh8 {[%emt 0:00:13]} 16. Rfe1 {[%emt 0:00:04]} Bd6 {[%emt 0:00:06]} 17. Bg3 {[%emt 0:00:21]} a5 {[%emt 0:00:05]} 18. Qc2 {[%emt 0:00:04]} f6 {[%emt 0:00:08]} 19. Nf3 {[%emt 0:00:21]} Re8 {[%emt 0:00:16]} 20. Re2 {[%emt 0:00:15]} Bc6 {[%emt 0:00:05]} 21. Qd3 {[%emt 0:00:06]} Rb8 {[%emt 0:00:09]} 22. Rae1 {[%emt 0:00:03]} Qd7 {[%emt 0:00:04]} 23. Nd2 {[%emt 0:00:05]} Bxg3 {[%emt 0:00:09]} 24. Qxg3 {[%emt 0:00:04]} Rbd8 {[%emt 0:00:10]} 25. Ne4 {[%emt 0:00:04]} Qf7 {[%emt 0:00:08]} 26. Nc5 {[%emt 0:00:19]} Bd5 {[%emt 0:00:14]} 27. b3 {[%emt 0:00:14]} h6 {[%emt 0:00:32]} 28. Qh3 {[%emt 0:00:17]} e5 {[%emt 0:00:14]} 29. Qe3 {[%emt 0:00:21]} exd4 {[%emt 0:00:03]} 30. Qxd4 {[%emt 0:00:03]} Rxe2 {[%emt 0:00:12]} 31. Rxe2 {[%emt 0:00:03]} Qg6 {[%emt 0:00:04]} 32. f3 {[%emt 0:00:09]} c6 {[%emt 0:00:07]} 33. Ne6 {[%emt 0:00:02]} Re8 {[%emt 0:00:04]} 34. Nf4 {[%emt 0:00:03]} Qb1+ {[%emt 0:00:03]} 35. Kf2 {[%emt 0:00:02]} Rxe2+ {[%emt 0:00:03]} 36. Nxe2 {[%emt 0:00:02]} Qf5 {[%emt 0:00:09]} 37. c4 {[%emt 0:00:03]} bxc4 {[%emt 0:00:02]} 38. bxc4 {[%emt 0:00:01]} Be6 {[%emt 0:00:01]} 39. Qd8+ {[%emt 0:00:04]} Kh7 {[%emt 0:00:03]} 40. Qb6 {[%emt 0:00:02]} Bxc4 {[%emt 0:00:04]} 41. Qxc6 {[%emt 0:00:04]} Qc2 {[%emt 0:00:02]} 42. Qe4+ {[%emt 0:00:01]} Qxe4 {[%emt 0:00:02]} 43. fxe4 {[%emt 0:00:01]} Bxa2 {[%emt 0:00:01]} 44. Nc3 {[%emt 0:00:01]} Bb3 {[%emt 0:00:02]} 45. Ke3 {[%emt 0:00:02]} a4 {[%emt 0:00:02]} 46. Nb5 {[%emt 0:00:02]} Bc4 {[%emt 0:00:02]} 47. Na3 {[%emt 0:00:02]} Bf1 {[%emt 0:00:02]} 48. g3 {[%emt 0:00:01]} Kg6 {[%emt 0:00:03]} 49. Kd4 {[%emt 0:00:02]} Kg5 {[%emt 0:00:02]} 50. Kd5 {[%emt 0:00:01]} Kg4 {[%emt 0:00:02]} 51. Ke6 {[%emt 0:00:02]} Kh3 {[%emt 0:00:01]} 52. Kf7 {[%emt 0:00:04]} Kxh2 {[%emt 0:00:02]} 53. Kxg7 {[%emt 0:00:01]} Kxg3 {[%emt 0:00:01]} 54. Kxh6 {[%emt 0:00:01]} Kf4 {[%emt 0:00:02]} 55. Kg6 {[%emt 0:00:01]} Ke5 {[%emt 0:00:02]} 56. Nc2 {[%emt 0:00:02]} Bd3 {[%emt 0:00:02]} 57. Na3 {[%emt 0:00:02]} Bxe4+ {[%emt 0:00:01]} 58. Kh5 {[%emt 0:00:01]} f5 {[%emt 0:00:01]} 59. Kg5 {[%emt 0:00:01]} f4 {[%emt 0:00:01]} 60. Kg4 {[%emt 0:00:01]} f3 {[%emt 0:00:02]} 61. Kg3 {[%emt 0:00:01]} Kd4 {[%emt 0:00:01]} 62. Kf2 {[%emt 0:00:03]} Kc3 {[%emt 0:00:02]} 63. Nb5+ {[%emt 0:00:01]} Kb4 {[%emt 0:00:01]} 64. Nd4 {[%emt 0:00:02]} a3 {[%emt 0:00:02]} 65. Nxf3 {[%emt 0:00:03]} Bxf3 {[%emt 0:00:02]} 66. Kxf3 {[%emt 0:00:01]} a2 {[%emt 0:00:01]} 67. Ke3 {[%emt 0:00:01]} a1=Q {[%emt 0:00:02]} 68. Kd2 {[%emt 0:00:01]} Qc3+ {[%emt 0:00:04]} 69. Kd1 {[%emt 0:00:01]} Qb2 {[%emt 0:00:03]} 70. Ke1 {[%emt 0:00:01]} Kc3 {[%emt 0:00:01]} 71. Kd1 {[%emt 0:00:01]} Qd2# {[%emt 0:00:02]} 0-1